bitfinex-derivatives/quotes_ETHF0:USTF0_20250531
["timestamp","ask_amount","ask_price","bid_price","bid_amount"]
[1748694446441,3.99896,2526.7,2526.6,1.2448]
[1748694447138,3.2078,2526.7,2526.6,2.03599]
[1748694447532,3.99896,2526.7,2526.6,2.03599]
[1748694447732,0.79116,2526.7,2526.6,2.03599]
[1748694447932,3.99896,2526.7,2526.6,2.03599]
[1748694448132,3.2078,2526.7,2526.6,2.03599]
[1748694449745,0.79121,2526.6,2526.5,0.79121]
[1748694450132,0.79121,2526.6,2526.5,2.04831]
[1748694450942,3.99898,2526.7,2526.6,0.79119]
[1748694451239,3.99898,2526.7,2526.6,2.10769]
[1748694453640,3.99898,2526.7,2526.6,1.3165]
[1748694454341,0.79122,2526.5,2526.4,0.6445]
[1748694454939,0.79122,2526.5,2526.4,1.43575]
[1748694455442,0.79122,2526.5,2526.4,0.6445]
[1748694455742,0.79125,2526.4,2526.3,1.3247]
[1748694456046,0.79125,2526.4,2526.3,2.11598]
[1748694456541,0.79125,2526.4,2526.3,1.3247]
[1748694457340,0.79125,2526.4,2526.3,2.11598]
[1748694457742,0.79125,2526.4,2526.3,1.3247]
[1748694457944,0.79125,2526.4,2526.3,2.11598]
[1748694458741,0.79125,2526.4,2526.3,1.3247]
[1748694459039,0.79125,2526.4,2526.3,2.11598]
[1748694459842,0.79125,2526.4,2526.3,1.3247]
[1748694460143,0.79125,2526.4,2526.3,2.11598]
[1748694461544,1.3244,2526.6,2526.2,0.648]
[1748694461545,0.79128,2526.3,2526.2,0.648]
[1748694462443,0.79128,2526.3,2526.2,1.43931]
[1748694462642,0.79128,2526.3,2526.2,0.648]
[1748694463140,1.9481,2526.4,2526.1,2.15622]
[1748694463340,0.79131,2526.2,2526.1,1.3649]
[1748694463541,0.79131,2526.2,2526.1,5.29998315]
[1748694464447,0.79131,2526.3,2526.2,0.79128]
[1748694464750,1.43617,2526.4,2526.3,0.79128]
[1748694465245,0.79127,2526.4,2526.3,0.79128]
[1748694465446,0.79127,2526.4,2526.3,1.41858]
[1748694465950,0.668,2526.6,2526.3,0.6273]
[1748694466145,1.45922,2526.6,2526.5,0.79122]
[1748694468551,0.79122,2526.5,2526.4,3.14373315]
[1748694468749,2.11002,2526.5,2526.4,3.14373315]
[1748694469350,0.668,2526.6,2526.4,3.93498315]
[1748694469549,0.79122,2526.5,2526.4,5.29628315]
[1748694469751,1.45922,2526.6,2526.5,0.79122]
[1748694469952,0.79122,2526.5,2526.4,5.29625315]
[1748694470142,0.79122,2526.5,2526.4,4.50503315]
[1748694470348,0.79122,2526.5,2526.4,5.29628315]
[1748694472757,3.2078,2527.0,2526.6,0.79119]
[1748694472957,0.79111,2526.9,2526.8,0.7911]
[1748694475057,0.79109,2527.0,2526.9,0.79108]
[1748694475251,0.79112,2526.9,2526.8,0.79111]
[1748694475452,0.79109,2527.0,2526.9,0.79106]
[1748694477557,0.79112,2526.9,2526.8,0.7911]
[1748694479258,0.79113,2526.8,2526.7,1.45942]
[1748694479451,0.79113,2526.8,2526.7,1.45946]
[1748694479646,0.79113,2526.8,2526.7,0.6683]
[1748694479856,0.79113,2526.8,2526.7,1.45946]
[1748694481248,0.79113,2526.8,2526.7,0.6683]
[1748694481852,0.79113,2526.8,2526.7,1.45946]
[1748694484456,0.79113,2526.8,2526.7,0.6683]
[1748694484964,0.79116,2526.7,2526.6,3.14373315]
[1748694485259,1.40996,2526.7,2526.6,3.93492315]
[1748694485762,1.40996,2526.7,2526.6,0.79119]
[1748694486863,3.2078,2527.3,2527.2,0.791]
[1748694488062,3.99877,2527.3,2527.2,0.791]
[1748694488764,0.791,2527.2,2527.1,3.14373315]
[1748694489261,0.791,2527.2,2527.1,0.79103]
[1748694489661,3.2078,2527.3,2527.0,3.77803315]
[1748694489662,3.99878,2527.3,2527.2,0.791]
[1748694489857,0.79103,2527.1,2527.0,3.14373315]
[1748694490464,2.76753,2527.1,2527.0,3.14373315]
[1748694490659,2.76753,2527.1,2526.7,1.42543]
[1748694490660,0.79113,2526.8,2526.7,0.6343]
[1748694490965,0.79116,2526.7,2526.6,3.14373315]
[1748694491171,0.79119,2526.6,2526.5,0.79122]
[1748694492363,0.79118,2526.7,2526.6,0.79119]
[1748694492568,0.79115,2526.8,2526.7,0.79115]
[1748694493468,1.3125,2526.9,2526.5,1.3022]
[1748694493765,1.3125,2526.9,2526.7,0.79115]
[1748694493766,0.79115,2526.8,2526.7,0.79115]
[1748694494667,7.1638,2527.0,2526.5,4.44593315]
[1748694494966,7.95486,2527.0,2526.9,0.7911]
[1748694495160,0.7911,2526.9,2526.8,0.7911]
[1748694495657,3.99888,2527.0,2526.9,0.7911]
[1748694496167,3.2078,2527.0,2526.8,0.6453]
[1748694496368,3.99889,2527.0,2526.9,1.2601]
[1748694496765,3.99889,2527.0,2526.9,2.0512]
[1748694497064,3.99889,2527.0,2526.9,1.2601]
[1748694497471,3.99889,2527.0,2526.9,2.0512]
[1748694498062,3.2078,2527.0,2526.9,2.0512]
[1748694498261,0.79106,2527.0,2526.9,2.0512]
[1748694498867,0.79106,2527.0,2526.9,1.2601]
[1748694499162,0.79106,2527.0,2526.9,2.0512]
[1748694499566,0.79106,2527.0,2526.9,1.2601]
[1748694500367,0.79106,2527.0,2526.9,2.0512]
[1748694500567,0.79105,2527.1,2527.0,0.79106]
[1748694500767,0.79105,2527.1,2527.0,2.04316]
[1748694501776,0.79105,2527.1,2527.0,1.2521]
[1748694502373,0.79105,2527.1,2527.0,2.04316]
[1748694502773,0.79105,2527.1,2527.0,1.2521]
[1748694503074,0.79105,2527.1,2527.0,2.04316]
[1748694503273,0.79105,2527.1,2527.0,1.2521]
[1748694508672,0.7911,2526.9,2526.8,1.4364]
[1748694509679,0.79113,2526.8,2526.7,3.14373315]
[1748694510172,0.79113,2526.8,2526.7,3.93489315]
[1748694510776,0.79116,2526.7,2526.6,3.78913315]
[1748694511179,0.79116,2526.7,2526.6,4.58032315]
[1748694514177,0.79115,2526.8,2526.7,0.79113]
[1748694514372,0.79115,2526.8,2526.7,2.10913]
[1748694514976,0.79112,2526.9,2526.8,0.79111]
[1748694515484,0.79113,2526.8,2526.7,2.10914]
[1748694517492,0.79116,2526.7,2526.6,4.58030315]
[1748694517689,3.2078,2527.0,2526.6,3.78913315]
[1748694517889,0.79113,2526.8,2526.7,2.12493]
[1748694519896,1.47332,2526.9,2526.8,0.79113]
[1748694520087,3.9989,2527.0,2526.9,0.7911]
[1748694521395,3.9989,2527.0,2526.9,2.1091]
[1748694521691,0.7911,2527.0,2526.9,2.1091]
[1748694522093,0.9888,2527.0,2526.9,2.1091]
[1748694523305,0.9888,2527.0,2526.9,1.318]
[1748694523797,0.9888,2527.0,2526.9,2.1091]
[1748694524695,0.9888,2527.0,2526.9,1.318]
[1748694525199,0.1977,2527.0,2526.7,0.79114]
[1748694525398,0.79116,2526.8,2526.7,2.08524]
[1748694527400,0.79112,2526.9,2526.8,0.79111]
[1748694528600,0.79113,2526.8,2526.7,2.08524]
[1748694528801,0.79116,2526.7,2526.6,7.78812315]
[1748694529102,1.5516,2527.0,2526.6,6.99693315]
[1748694529301,0.7911,2526.9,2526.8,0.79112]
[1748694530702,0.7911,2526.9,2526.7,1.3571]
[1748694530703,0.79113,2526.8,2526.7,2.14824]
[1748694532196,0.79112,2526.9,2526.8,0.79112]
[1748694532900,0.79113,2526.8,2526.7,2.14823]
[1748694533704,0.79113,2526.8,2526.7,1.3571]
[1748694534706,0.1977,2527.0,2526.9,0.7911]
[1748694535303,0.98876,2527.0,2526.9,0.7911]
[1748694536307,0.98876,2527.0,2526.9,2.0789]
[1748694538611,0.7911,2526.9,2526.8,3.14483436]
[1748694538811,3.4025,2526.9,2526.8,3.14483436]
[1748694539310,0.7911,2526.9,2526.8,3.14483436]
[1748694539708,0.79113,2526.8,2526.7,5.24676436]
[1748694541610,2.1697,2527.0,2526.7,5.24676436]
[1748694541611,0.8313,2527.0,2526.9,0.7911]
[1748694541811,0.98876,2527.0,2526.9,0.7911]
[1748694542911,0.98876,2527.0,2526.9,2.0889]
[1748694544706,0.98876,2527.0,2526.9,3.93593436]
[1748694545211,0.98876,2527.0,2526.9,0.7911]
[1748694545712,0.98876,2527.0,2526.9,2.0775]
[1748694545907,0.98876,2527.0,2526.9,1.2864]
[1748694546120,0.98876,2527.0,2526.9,5.22233436]
[1748694547108,0.98876,2527.0,2526.9,4.43123436]
[1748694547814,0.98876,2527.0,2526.9,1.2864]
[1748694548315,0.98876,2527.0,2526.9,2.0775]
[1748694549217,0.98876,2527.0,2526.9,5.22233436]
[1748694550320,0.98876,2527.0,2526.9,2.0775]
[1748694551012,0.98876,2527.0,2526.9,4.43123436]
[1748694551218,0.98876,2527.0,2526.9,3.14483436]
[1748694551918,0.7911,2526.9,2526.8,3.93593436]
[1748694553113,4.5588,2527.1,2526.8,3.14483436]
[1748694553319,3.2078,2527.1,2527.0,0.79106]
[1748694553519,3.2078,2527.4,2527.1,1.97759]
[1748694553711,3.99876,2527.4,2527.3,0.79097]
[1748694554812,4.19636,2527.4,2527.3,0.79097]
[1748694555012,0.79097,2527.3,2527.2,2.05958]
[1748694556314,0.79097,2527.3,2527.2,1.2686]
[1748694556715,1.47507,2527.3,2527.2,2.0596]
[1748694557221,0.79097,2527.3,2527.2,2.0596]
[1748694557417,4.19635,2527.4,2527.3,0.79097]
[1748694557616,3.4054,2527.4,2527.3,2.02317]
[1748694558417,4.19634,2527.4,2527.3,2.02317]
[1748694560224,3.4054,2527.4,2527.3,2.02317]
[1748694560427,4.19634,2527.4,2527.3,2.02317]
[1748694561326,3.4054,2527.4,2527.3,2.02317]
[1748694561632,4.19634,2527.4,2527.3,2.02317]
[1748694561925,3.4054,2527.4,2527.3,2.02317]
[1748694565923,4.19634,2527.4,2527.3,2.02317]
[1748694566122,0.98854,2527.4,2527.3,2.02317]
[1748694566329,0.1976,2527.4,2527.3,2.02317]
[1748694572132,0.8258,2527.4,2527.3,2.02317]
[1748694572431,1.61674,2527.4,2527.3,2.02317]
[1748694572626,0.79097,2527.3,2527.2,3.14483436]
[1748694572828,2.14867,2527.3,2527.2,3.14483436]
[1748694573030,2.14867,2527.3,2527.2,3.93583436]
[1748694573931,2.14867,2527.3,2527.2,0.791]
[1748694574126,0.791,2527.2,2527.1,3.78063436]
[1748694574331,0.791,2527.2,2527.1,3.14483436]
[1748694574527,1.3577,2527.3,2526.9,5.30660033]
[1748694574528,0.79106,2527.0,2526.9,5.30660033]
[1748694574735,0.79106,2527.0,2526.9,3.89742033]
[1748694575132,2.81856,2527.0,2526.9,3.89742033]
[1748694575332,2.0275,2527.0,2526.8,0.79112]
[1748694575527,0.79112,2526.9,2526.8,0.79112]
[1748694576229,2.81858,2527.0,2526.9,0.7911]
[1748694576533,2.81858,2527.0,2526.9,0.5934]
[1748694578136,0.7911,2526.9,2526.8,2.1315]
[1748694580236,0.79113,2526.8,2526.7,4.54686495]
[1748694581231,0.79113,2526.8,2526.7,3.75572495]
[1748694581438,0.79113,2526.8,2526.7,4.54688495]
[1748694582537,0.79113,2526.8,2526.7,1.40926]
[1748694583042,0.79113,2526.8,2526.7,4.54688495]
[1748694584331,0.79113,2526.8,2526.7,1.40926]
[1748694589444,2.05652,2526.9,2526.8,0.79113]
[1748694590952,0.79112,2526.9,2526.8,0.79113]
[1748694591650,0.7911,2526.9,2526.8,2.05043]
[1748694593356,1.46978,2527.0,2526.9,0.7911]
[1748694593555,1.46978,2527.0,2526.9,2.0504]
[1748694593758,1.46978,2527.0,2526.9,1.2593]
[1748694593950,0.79113,2526.9,2526.7,0.6181]
[1748694594152,0.79113,2526.9,2526.8,0.79112]
[1748694594351,0.79113,2526.8,2526.7,1.40924]
[1748694594551,0.79116,2526.7,2526.6,3.13762495]
[1748694594752,2.13516,2526.7,2526.6,3.13762495]
[1748694594947,0.79119,2526.6,2526.5,3.13762495]
[1748694595151,3.44849,2526.6,2526.5,3.13762495]
[1748694596158,0.79122,2526.5,2526.4,0.79125]
[1748694596554,0.79125,2526.4,2526.3,1.45316]
[1748694596751,0.79125,2526.4,2526.3,2.76766]
[1748694599161,0.79125,2526.4,2526.3,1.9764]
[1748694600253,1.344,2526.6,2526.5,0.79122]
[1748694600460,0.79118,2526.7,2526.6,0.79115]
[1748694600865,3.8778,2527.1,2526.5,1.3561]
[1748694601059,3.8778,2527.1,2526.6,1.97796]
[1748694601260,1.3546,2527.3,2526.6,1.97796]
[1748694601261,0.791,2527.3,2527.2,0.79099]
[1748694601460,0.79103,2527.2,2527.1,0.79101]
[1748694602164,0.79103,2527.1,2527.0,2.14714]
[1748694602366,0.79103,2527.1,2527.0,0.79104]
[1748694602559,0.79106,2527.0,2526.9,0.6632]
[1748694602959,0.79106,2527.0,2526.9,1.4543]
[1748694603368,0.79106,2527.1,2527.0,0.79104]
[1748694604868,0.79106,2527.0,2526.9,1.45427]
[1748694605768,0.79105,2527.1,2527.0,0.79104]
[1748694606570,0.79106,2527.0,2526.9,1.45427]
[1748694607071,0.79106,2527.0,2526.9,0.6632]
[1748694607568,0.7911,2526.9,2526.8,3.13762495]
[1748694607873,2.7166,2526.9,2526.8,3.13762495]
[1748694608373,0.79113,2526.8,2526.7,0.79116]
[1748694613778,1.42648,2527.0,2526.6,1.3575]
[1748694613980,3.2078,2527.1,2526.7,1.9779]
[1748694614180,3.2078,2527.1,2527.0,0.79106]
[1748694615080,3.99883,2527.1,2527.0,0.79106]
[1748694615585,0.791,2527.3,2527.2,0.791]
[1748694615883,0.79101,2527.2,2527.1,0.79101]
[1748694616179,0.79101,2527.2,2527.1,0.791]
[1748694617181,0.79098,2527.3,2527.2,0.79098]
[1748694619483,0.79098,2527.3,2527.2,2.09588]
[1748694620483,0.79097,2527.3,2527.2,2.09588]
[1748694621385,5.18518,2527.4,2526.9,3.92869495]
[1748694621586,0.79106,2527.0,2526.9,3.13762495]
[1748694622082,0.79106,2527.0,2526.9,3.92872495]
[1748694622289,0.79106,2527.0,2526.9,3.13762495]
[1748694622483,0.7911,2526.9,2526.8,2.1169]
[1748694622986,0.79113,2526.8,2526.7,1.46214]
[1748694624385,0.79111,2526.9,2526.8,0.7911]
[1748694624691,0.79111,2526.9,2526.8,2.1169]
[1748694625390,0.79111,2526.9,2526.8,1.3258]
[1748694625882,0.79111,2526.9,2526.8,2.11693]
[1748694626287,0.79109,2527.0,2526.9,0.79107]
[1748694626480,4.61896,2527.1,2527.0,0.79106]
[1748694626688,3.2078,2527.1,2527.0,0.79106]
[1748694626986,3.99883,2527.1,2527.0,0.79106]
[1748694627386,3.99883,2527.1,2527.0,2.09136]
[1748694627992,3.2078,2527.1,2527.0,2.09136]
[1748694628382,3.4055,2527.1,2527.0,2.09136]
[1748694628591,0.1977,2527.1,2527.0,2.09136]
[1748694631092,0.98873,2527.1,2527.0,1.3003]
[1748694632794,0.98873,2527.1,2527.0,2.09136]
[1748694633789,0.1977,2527.1,2527.0,2.09136]
[1748694634494,0.98873,2527.1,2527.0,2.09136]
[1748694634895,0.98873,2527.1,2526.9,3.80372495]
[1748694634896,0.79106,2527.0,2526.9,3.13762495]
[1748694635299,1.42196,2527.0,2526.9,3.13762495]
[1748694635997,0.79112,2526.9,2526.8,0.79111]
[1748694636897,0.79113,2526.8,2526.7,4.59975495]
[1748694637099,0.79113,2526.8,2526.7,4.59978495]
[1748694637305,0.79113,2526.8,2526.7,3.80862495]
[1748694637797,0.79113,2526.8,2526.7,3.13762495]
[1748694638300,0.79113,2526.8,2526.7,0.79116]
[1748694641604,0.79119,2526.6,2526.5,3.13762495]
[1748694642194,1.43919,2526.6,2526.5,3.13762495]
[1748694642400,0.79125,2526.4,2526.3,0.79127]
[1748694643803,0.79124,2526.5,2526.4,0.79122]
[1748694645094,0.79125,2526.4,2526.3,2.13566]
[1748694645692,0.79125,2526.5,2526.4,0.79123]
[1748694645896,0.79125,2526.5,2526.4,2.13563]
[1748694646300,0.98905,2526.5,2526.4,2.13563]
[1748694646905,0.98905,2526.5,2526.4,1.3444]
[1748694648305,0.98905,2526.5,2526.4,2.13565]
[1748694648505,0.98905,2526.5,2526.4,1.3444]
[1748694649299,0.79128,2526.3,2526.2,3.75432495]
[1748694649504,0.79128,2526.3,2526.2,3.13762495]
[1748694649505,3.99908,2526.3,2526.2,3.13762495]
[1748694650298,0.79138,2526.0,2525.9,7.03504528]
[1748694650598,0.79138,2526.0,2525.9,3.13762495]
[1748694650805,4.00663132,2526.2,2525.8,1.44721]
[1748694650806,0.79141,2525.9,2525.8,1.44721]
[1748694651006,0.79141,2525.9,2525.8,2.68721]
[1748694652307,0.79138,2526.0,2525.9,0.79137]
[1748694652605,0.79138,2526.0,2525.9,2.10617]
[1748694654904,0.79137,2526.1,2526.0,0.79136]
[1748694655301,1.46506132,2526.2,2526.1,0.79135]
[1748694655495,0.00593132,2526.2,2526.1,3.99915]
[1748694655802,0.1978,2526.5,2526.1,3.99915]
[1748694655803,0.1978,2526.5,2526.4,0.79125]
[1748694656002,0.1978,2526.5,2526.4,3.99905]
[1748694656204,0.1978,2526.5,2526.4,8.00160339]
[1748694656806,0.1978,2526.5,2526.4,9.29780339]
[1748694657108,0.1978,2526.5,2526.4,12.36387495]
[1748694663516,0.98902,2526.5,2526.4,12.36387495]
[1748694663805,0.1978,2526.5,2526.4,12.36387495]
[1748694664510,0.00593132,2526.7,2526.6,0.79119]
[1748694666308,3.2078,2527.3,2527.2,0.791]
[1748694666815,3.99877,2527.3,2527.2,0.791]
[1748694667624,3.99877,2527.3,2527.2,2.112]
[1748694667913,3.2078,2527.3,2527.2,2.112]
[1748694668114,3.99877,2527.3,2527.2,2.112]
[1748694668710,0.79097,2527.3,2527.2,2.112]
[1748694671817,3.21373132,2527.5,2527.2,1.321]
[1748694672116,3.21373132,2527.5,2527.4,0.79094]
[1748694672915,4.00464132,2527.5,2527.4,0.79094]
[1748694675420,5.27224132,2527.5,2527.4,0.79094]
[1748694677621,0.79094,2527.4,2527.3,2.15155]
[1748694677816,0.79094,2527.4,2527.3,0.79095]
[1748694678020,2.07574,2527.4,2527.3,0.79095]
[1748694680021,1.2848,2527.4,2527.3,0.79095]
[1748694681218,2.07574,2527.4,2527.3,0.79095]
[1748694681724,2.07574,2527.4,2527.1,1.9916]
[1748694681725,0.791,2527.2,2527.1,0.791]
[1748694681919,3.22705,2527.3,2526.9,3.13547368]
[1748694682125,3.99886,2527.0,2526.9,3.13547368]
[1748694682520,0.79115,2526.8,2526.7,0.79116]
[1748694682920,1.2581,2526.9,2526.6,3.99897]
[1748694683227,0.6774,2526.7,2526.6,3.99897]
[1748694685322,3.8592,2527.0,2526.6,4.5562]
[1748694685515,3.2078,2527.0,2526.9,0.7911]
[1748694686429,0.6774,2527.2,2527.1,0.79103]
[1748694686823,3.2078,2527.4,2527.3,0.79097]
[1748694687327,3.99876,2527.4,2527.0,5.77187368]
[1748694687525,3.99876,2527.4,2527.3,0.79097]
[1748694687929,3.2078,2527.4,2527.3,0.79097]
[1748694693024,3.4054,2527.4,2527.3,0.79097]
[1748694695032,3.4054,2527.4,2527.3,2.10237]
[1748694695926,0.1976,2527.4,2527.3,6.02737]
[1748694696425,3.2078,2527.7,2527.4,0.79094]
[1748694696627,3.2078,2528.0,2527.9,0.79078]
[1748694697225,3.2078,2528.0,2527.9,2.10218]
[1748694699635,0.00593132,2528.2,2528.1,0.79072]
[1748694700030,0.00593132,2528.2,2528.1,4.71572]
[1748694700230,0.00593132,2528.2,2528.1,6.02872]
[1748694702032,5.00593132,2528.2,2528.0,3.13539428]
[1748694702238,3.99852,2528.1,2528.0,3.13539428]
[1748694702439,5.30082,2528.1,2528.0,3.13539428]
[1748694702735,0.79081,2527.8,2527.7,0.00593132]
[1748694702936,3.99861,2527.8,2527.7,0.00593132]
[1748694703831,5.30091,2527.8,2527.7,0.00593132]
[1748694705334,4.5101,2527.8,2527.7,0.79677132]
[1748694705532,3.99861,2527.8,2527.7,0.79677132]
[1748694706136,3.99861,2527.8,2527.7,0.00593132]
[1748694706839,3.2078,2527.8,2527.7,0.79677132]
[1748694707339,3.99861,2527.8,2527.7,0.00593132]
[1748694710634,5.34201,2527.8,2527.7,0.00593132]
[1748694711139,5.98611,2527.8,2527.7,0.00593132]
[1748694721847,4.64271,2527.8,2527.7,0.00593132]
[1748694722346,4.64271,2527.8,2527.7,0.79677132]
[1748694722651,3.99861,2527.8,2527.7,0.79677132]
[1748694722854,3.99861,2527.8,2527.7,0.67943132]
[1748694723043,3.99861,2527.8,2527.7,0.00593132]
[1748694723240,5.23931,2527.8,2527.7,0.00593132]
[1748694724853,3.99861,2527.8,2527.7,0.00593132]
[1748694725055,3.99861,2527.8,2527.7,1.32813132]
[1748694725547,3.99861,2527.8,2527.7,2.11897132]
[1748694726746,3.99861,2527.8,2527.7,1.32813132]
[1748694727842,3.99861,2527.8,2527.7,0.00593132]
[1748694728555,5.24561,2527.8,2527.7,0.00593132]
[1748694731354,3.99861,2527.8,2527.7,0.00593132]
[1748694731555,3.99861,2527.8,2527.7,2.09647132]
[1748694732055,3.99861,2527.8,2527.7,1.30563132]
[1748694732756,3.99861,2527.8,2527.7,2.09647132]
[1748694733851,3.2078,2527.8,2527.7,2.09647132]
[1748694734957,3.99861,2527.8,2527.7,2.09647132]
[1748694736246,3.2078,2527.8,2527.7,2.09647132]
[1748694736446,3.24661,2528.1,2527.8,0.79079]
[1748694736657,3.21373132,2528.2,2528.0,0.79074]
[1748694736956,4.00442132,2528.2,2528.1,1.3384]
[1748694740456,3.21373132,2528.2,2528.1,2.12912]
[1748694741151,3.21373132,2528.2,2528.1,6.04512]
[1748694742258,3.21373132,2528.2,2528.1,9.18048913]
[1748694742454,4.00442132,2528.2,2528.1,9.18048913]
[1748694742654,4.00442132,2528.2,2528.1,8.38976913]
[1748694742957,0.79662132,2528.2,2528.1,9.18048913]
[1748694743458,0.00593132,2528.2,2528.1,9.18048913]
[1748694743861,0.79662132,2528.2,2528.1,9.18048913]
[1748694745161,0.00593132,2528.2,2528.1,9.18048913]
[1748694745362,3.2078,2528.5,2528.1,9.18048913]
[1748694745363,3.2078,2528.5,2528.4,0.79063]
[1748694745956,0.79063,2528.4,2528.3,1.3006]
[1748694746163,1.45903,2528.4,2528.3,1.3006]
[1748694746864,0.79066,2528.3,2528.2,1.46749]
[1748694747865,1.45904,2528.4,2528.3,0.79066]
[1748694748066,1.45904,2528.4,2528.3,2.07116]
[1748694748467,3.2078,2528.5,2528.4,0.79063]
[1748694748662,3.2078,2528.5,2528.4,2.07113]
[1748694750568,3.2078,2528.5,2528.4,2.75073]
[1748694754767,3.2078,2528.5,2528.4,6.66673]
[1748694755165,0.00593132,2528.6,2528.5,0.79059]
[1748694755474,0.00593132,2528.6,2528.5,2.02259]
[1748694755769,0.00593132,2528.6,2528.5,5.23039]
[1748694759066,0.79038,2529.2,2529.1,0.79041]
[1748694759476,0.79039,2529.2,2529.0,0.79042]
[1748694759665,0.79039,2529.2,2529.1,1.3127]
[1748694759858,3.2078,2529.2,2528.8,7.91329]
[1748694760260,1.9895,2529.1,2528.9,0.79047]
[1748694760464,3.99819,2529.2,2528.8,7.1228]
[1748694760667,3.99819,2529.2,2528.9,1.3127]
[1748694760868,3.99819,2529.2,2529.0,0.79041]
[1748694761261,3.99819,2529.2,2529.1,1.9527]
[1748694761570,0.79039,2529.2,2529.1,1.9527]
[1748694762273,0.79043,2529.1,2528.9,0.79045]
[1748694762469,0.79044,2529.0,2528.9,2.69925]
[1748694762673,0.79044,2529.0,2528.9,6.61425]
[1748694763375,0.79042,2529.1,2529.0,0.79043]
[1748694764075,0.79042,2529.1,2528.9,5.8198]
[1748694764076,0.79044,2529.0,2528.9,2.69925]
[1748694764277,0.79044,2529.0,2528.9,6.61025]
[1748694764678,0.79047,2528.9,2528.8,3.911]
[1748694764874,1.46717,2528.9,2528.8,3.911]
[1748694765073,0.6767,2528.9,2528.6,3.13132093]
[1748694765375,0.79053,2528.7,2528.6,3.13132093]
[1748694765776,0.79053,2528.7,2528.4,3.89742033]
[1748694765777,1.331,2528.7,2528.4,0.79061]
[1748694765980,0.79063,2528.4,2528.3,6.33912093]
[1748694766379,5.79063,2528.4,2528.3,3.13132093]
[1748694766977,0.79069,2528.2,2528.1,3.13132093]
[1748694767583,2.6907,2528.4,2527.9,3.2078]
[1748694768072,0.79071,2528.2,2528.1,0.7907]
[1748694768682,0.79072,2528.1,2528.0,0.79073]
[1748694770681,0.79075,2528.0,2527.9,5.24366]
[1748694770882,0.79075,2528.0,2527.9,3.99856]
[1748694771071,3.2078,2528.2,2527.8,3.13132093]
[1748694771387,0.79078,2527.9,2527.8,3.13132093]
[1748694771775,1.3001,2528.1,2527.7,0.00593132]
[1748694771776,0.79081,2527.8,2527.7,3.13725225]
[1748694772885,2.09091,2527.8,2527.7,0.00593132]
[1748694773981,2.09091,2527.8,2527.7,0.79677132]
[1748694774178,2.09091,2527.8,2527.7,0.00593132]
[1748694776184,2.09091,2527.8,2527.7,0.79677132]
[1748694776578,2.09091,2527.8,2527.7,0.00593132]
[1748694777383,2.09091,2527.8,2527.7,0.79677132]
[1748694777586,2.09091,2527.8,2527.7,0.00593132]
[1748694779286,1.3001,2527.8,2527.7,0.79677132]
[1748694780289,2.09091,2527.8,2527.7,0.79677132]
[1748694780791,1.3001,2527.8,2527.7,0.79677132]
[1748694781792,2.09091,2527.8,2527.7,0.79677132]
[1748694782089,1.3001,2527.8,2527.7,0.79677132]
[1748694782487,2.09091,2527.8,2527.7,0.79677132]
[1748694782792,4.6784,2527.9,2527.8,0.79081]
[1748694783386,0.79081,2527.8,2527.7,2.14946132]
[1748694783792,0.79081,2527.8,2527.7,0.79676132]
[1748694784094,0.79081,2527.8,2527.7,0.00593132]
[1748694784391,2.06151,2527.8,2527.7,0.00593132]
[1748694784990,2.06151,2527.8,2527.7,0.79677132]
[1748694785191,3.8876,2527.9,2527.7,0.00593132]
[1748694785492,0.79081,2527.8,2527.7,0.00593132]
[1748694785891,2.06151,2527.8,2527.7,0.00593132]
[1748694786189,2.06151,2527.8,2527.7,0.79677132]
[1748694787505,2.06151,2527.8,2527.7,0.00593132]
[1748694789389,7.06151,2527.8,2527.7,0.00593132]
[1748694791394,2.06151,2527.8,2527.7,0.00593132]
[1748694798512,0.79081,2527.8,2527.7,0.00593132]
[1748694798703,0.79081,2527.8,2527.7,1.34123132]
[1748694801916,0.79081,2527.8,2527.7,2.75637132]
[1748694802305,0.79081,2527.8,2527.7,1.96553132]
[1748694808613,0.79081,2527.8,2527.7,1.34123132]
[1748694813817,0.00593132,2528.0,2527.7,1.34123132]
[1748694814013,0.00593132,2528.0,2527.9,0.79078]
[1748694814414,0.79668132,2528.0,2527.9,2.14258]
[1748694814918,0.79668132,2528.0,2527.9,5.27390093]
[1748694815720,0.79668132,2528.0,2527.9,4.48312093]
[1748694816326,0.79668132,2528.0,2527.9,5.27390093]
[1748694816825,0.00593132,2528.0,2527.9,5.27390093]
[1748694817019,0.79668132,2528.0,2527.9,5.27390093]
[1748694817215,0.00593132,2528.0,2527.9,5.27390093]
[1748694817624,0.00593132,2528.0,2527.9,2.14258]
[1748694818322,3.2078,2528.8,2528.0,1.97686]
[1748694818526,0.79061,2528.5,2528.1,9.1178]
[1748694818827,0.79061,2528.5,2528.4,0.79063]
[1748694819228,3.2078,2528.8,2528.3,0.6257]
[1748694819428,0.00392659,2528.7,2528.6,0.79056]
[1748694819925,5.29671627,2529.2,2529.1,0.79041]
[1748694819926,3.2078,2529.2,2529.1,0.79041]
[1748694824022,0.79035,2529.3,2529.1,0.79041]
[1748694824217,0.79031,2529.4,2529.0,3.908]
[1748694824427,0.79033,2529.4,2529.2,0.79037]
[1748694825725,0.79033,2529.4,2529.0,3.908]
[1748694825726,3.2078,2529.5,2529.4,0.79031]
[1748694826831,3.99808,2529.5,2529.4,0.79031]
[1748694827031,3.2078,2529.5,2529.4,0.79031]
[1748694829824,3.99808,2529.5,2529.4,0.79031]
[1748694830232,0.79032,2529.4,2529.3,0.79033]
[1748694830528,3.9981,2529.5,2529.4,0.79031]
[1748694832133,3.2078,2529.5,2529.4,0.79031]
[1748694832636,3.2078,2529.9,2529.8,0.79019]